Workbook

Sheet Перечень
A1: Перечень узлов | B1: Кол-во
A2: 301224.025 | B2: 5
A3: 301313.072 | B3: 2

Sheet Комплект
B1: Комплекование общее
A2: №п/п | B2: Номер | C2: Наименование | D2: Кол-во | E2: Материал | F2: Кол-во материала
B3: 301313.072 | C3: =VLOOKUP(B3,Данные!A:E,2,0) -> Швеллер | D3: 5 | E3: =VLOOKUP(B3,Данные!A:E,3,0) -> Узел | F3: =(VLOOKUP(B3,Данные!A:E,4,0))*D3 -> 0
A4: 2 | B4: 301314.413 | C4: =VLOOKUP(B4,Данные!A:E,2,0) -> Основание | D4: 7 | E4: =VLOOKUP(B4,Данные!A:E,3,0) -> Узел | F4: =(VLOOKUP(B4,Данные!A:E,4,0))*D4 -> 0
A5: 3 | B5: 741124.156 | C5: =VLOOKUP(B5,Данные!A:E,2,0) -> Пластина | D5: 14 | E5: =VLOOKUP(B5,Данные!A:E,3,0) -> Лист Б-ПН-0-5 ГОСТ19903-74 | F5: =(VLOOKUP(B5,Данные!A:E,4,0))*D5 -> 4.34
A6: 4 | B6: 746214.012 | C6: =VLOOKUP(B6,Данные!A:E,2,0) -> Швеллер | D6: 7 | E6: =VLOOKUP(B6,Данные!A:E,3,0) -> Швеллер 16П-в ГОСТ8240-97 | F6: =(VLOOKUP(B6,Данные!A:E,4,0))*D6 -> 56.42
A7: 5 | B7: 715345.013 | C7: =VLOOKUP(B7,Данные!A:E,2,0) -> Втулка | D7: 42 | E7: =VLOOKUP(B7,Данные!A:E,3,0) -> Пруток ДКРНП 40,0 ЛС59-1 ГОСТ2060-73 | F7: =(VLOOKUP(B7,Данные!A:E,4,0))*D7 -> 1.68
A8: 6 | B8: 741334.029 | C8: =VLOOKUP(B8,Данные!A:E,2,0) -> Пластина | D8: 20 | E8: =VLOOKUP(B8,Данные!A:E,3,0) -> Лист Б-ПН-8 ГОСТ19903-74 | F8: =(VLOOKUP(B8,Данные!A:E,4,0))*D8 -> 1.96
A9: 7 | B9: 715111.006 | C9: =VLOOKUP(B9,Данные!A:E,2,0) -> Вал | D9: 15 | E9: =VLOOKUP(B9,Данные!A:E,3,0) -> Круг 30 ГОСТ7417-75 | F9: =(VLOOKUP(B9,Данные!A:E,4,0))*D9 -> 21.45
A10: 8 | B10: 743111.034 | C10: =VLOOKUP(B10,Данные!A:E,2,0) -> Рычаг | D10: 10 | E10: =VLOOKUP(B10,Данные!A:E,3,0) -> Лист Б-ПН-0-4 ГОСТ19903-74 | F10: =(VLOOKUP(B10,Данные!A:E,4,0))*D10 -> 0.8
A11: 9 | B11: 741314.036 | C11: =VLOOKUP(B11,Данные!A:E,2,0) -> Кольцо | D11: 15 | E11: =VLOOKUP(B11,Данные!A:E,3,0) -> Лист БТ-ПН-0-2,5 ГОСТ19904-90 | F11: =(VLOOKUP(B11,Данные!A:E,4,0))*D11 -> 0.18
A12: 10 | B12: 741124.157 | C12: =VLOOKUP(B12,Данные!A:E,2,0) -> Пластина | D12: 10 | E12: =VLOOKUP(B12,Данные!A:E,3,0) -> Лист 6 ГОСТ5681-57 | F12: =(VLOOKUP(B12,Данные!A:E,4,0))*D12 -> 3.76
A13: 11 | B13: 741361.025 | C13: =VLOOKUP(B13,Данные!A:E,2,0) -> Пластина | D13: 20 | E13: =VLOOKUP(B13,Данные!A:E,3,0) -> Лист 6 ГОСТ5681-57 | F13: =(VLOOKUP(B13,Данные!A:E,4,0))*D13 -> 2.8
A14: 12 | B14: 711143.003 | C14: =VLOOKUP(B14,Данные!A:E,2,0) -> Диск | D14: 15 | E14: =VLOOKUP(B14,Данные!A:E,3,0) -> Лист 12 ГОСТ5681-51 | F14: =(VLOOKUP(B14,Данные!A:E,4,0))*D14 -> 2.7
A15: 13 | B15: 715312.051 | C15: =VLOOKUP(B15,Данные!A:E,2,0) -> Ось | D15: 20 | E15: =VLOOKUP(B15,Данные!A:E,3,0) -> Круг 22-h11 ГОСТ7417-75 | F15: =(VLOOKUP(B15,Данные!A:E,4,0))*D15 -> 2.22

Sheet Состав узлов
A1: 304597.007 | C1: 301224.024-02 | E1: 684564.022 | G1: 304597.007-01 | I1: 301314.411 | K1: 301314.412 | M1: 301314.412-01 | O1: 301314.413-01 | Q1: 301314.412-02 | S1: 301224.025 | U1: 301224.025-01 | W1: 301314.413 | Y1: 301314.413-02 | AA1: 301224.023 | AC1: 301224.025-02 | AE1: 301313.072 | AG1: 301313.072-01 | AI1: 301313.072-02 | AK1: 301313.072-03 | AM1: 301313.072-04 | AO1: 301313.072-05 | AQ1: 301313.073 | AS1: 301224.024-01 | AU1: 301224.024
A2: 746312.046 | B2: 1 | C2: 301313.072-05 | D2: 1 | E2: 301224.025 | F2: 1 | G2: 746312.046 | H2: 1 | I2: 741124.156 | J2: 2 | K2: 741124.156 | L2: 2 | M2: 741124.156 | N2: 2 | O2: 741124.156 | P2: 2 | Q2: 741124.156 | R2: 2 | S2: 301313.072 | T2: 1 | U2: 301313.072-01 | V2: 1 | W2: 741124.156 | X2: 2 | Y2: 741124.156 | Z2: 2 | AA2: 301313.073 | AB2: 1 | AC2: 301313.072-02 | AD2: 1 | AE2: 301314.413 | AF2: 1 | AG2: 301314.413-01 | AH2: 1 | AI2: 301314.413-02 | AJ2: 1 | AK2: 301314.412 | AL2: 1 | AM2: 301314.412-01 | AN2: 1 | AO2: 301314.412-02 | AP2: 1 | AQ2: 301314.411 | AR2: 1 | AS2: 301313.072-04 | AT2: 1 | AU2: 301313.072-03 | AV2: 1
A3: 715211.026 | B3: 1 | C3: 741334.029 | D3: 4 | E3: 301314.411 | F3: 4 | G3: 715211.026-01 | H3: 1 | I3: 746212.140 | J3: 1 | K3: 746214.013 | L3: 1 | M3: 746214.017 | N3: 1 | O3: 746214.015 | P3: 1 | Q3: 746214.018 | R3: 1 | S3: 741334.029 | T3: 4 | U3: 741334.029 | V3: 4 | W3: 746214.012 | X3: 1 | Y3: 746214.016 | Z3: 1 | AA3: 741334.029 | AB3: 4 | AC3: 741334.029 | AD3: 4 | AE3: 715345.013 | AF3: 6 | AG3: 715345.013 | AH3: 4 | AI3: 715345.013 | AJ3: 4 | AK3: 715345.013 | AL3: 6 | AM3: 715345.013 | AN3: 4 | AO3: 715345.013 | AP3: 4 | AQ3: 715345.013 | AR3: 2 | AS3: 741334.029 | AT3: 4 | AU3: 741334.029 | AV3: 4
C4: 715111.006 | D4: 3 | E4: 301314.413 | F4: 3 | S4: 715111.006 | T4: 3 | U4: 715111.006 | V4: 2 | AA4: 715111.006 | AB4: 1 | AC4: 715111.006 | AD4: 2 | AS4: 715111.006 | AT4: 3 | AU4: 715111.006 | AV4: 3
C5: 743111.034 | D5: 2 | E5: 301314.412 | F5: 2 | S5: 743111.034 | T5: 2 | U5: 743111.034 | V5: 2 | AA5: 741314.036 | AB5: 2 | AC5: 743111.034 | AD5: 2 | AS5: 743111.034 | AT5: 2 | AU5: 743111.034 | AV5: 2
C6: 741314.036 | D6: 8 | E6: 741314.036 | F6: 3 | S6: 741314.036 | T6: 3 | U6: 741314.036 | V6: 2 | AA6: 743111.034 | AB6: 2 | AC6: 741314.036 | AD6: 2 | AS6: 741314.036 | AT6: 8 | AU6: 741314.036 | AV6: 8
C7: 741124.157 | D7: 1 | E7: 301313.073 | F7: 2 | S7: 741124.157 | T7: 2 | U7: 741124.157 | V7: 1 | AC7: 741124.157 | AD7: 1 | AS7: 741124.157 | AT7: 1 | AU7: 741124.157 | AV7: 2
C8: 741361.025 | D8: 4 | E8: 741334.029 | F8: 4 | S8: 741361.025 | T8: 4 | U8: 741361.025 | V8: 2 | AC8: 741361.025 | AD8: 2 | AS8: 741361.025 | AT8: 4 | AU8: 741361.025 | AV8: 4
E9: 715111.006 | F9: 3 | S9: 711143.003 | T9: 3 | U9: 711143.003 | V9: 2 | AC9: 711143.003 | AD9: 2
E10: 304597.007 | F10: 4 | S10: 715312.051 | T10: 4 | U10: 715312.051 | V10: 2 | AC10: 715312.051 | AD10: 2
G20: Узел
G21: деталь/узел | H21: шт
G22: деталь | H22: шт

Sheet Состав узлов (2)
A1: Узел | B1: деталь/узел | C1: шт | D1: деталь | E1: шт | F1: деталь | G1: шт | H1: деталь | I1: шт | J1: деталь | K1: шт | L1: деталь | M1: шт | N1: деталь | O1: шт | P1: деталь | Q1: шт | R1: деталь | S1: шт
A2: 304597.007 | B2: 746312.046 | C2: 1 | D2: 715211.026 | E2: 1
A3: 301224.024-02 | B3: 741314.036 | C3: 8 | D3: 741124.157 | E3: 1 | F3: 741361.025 | G3: 4 | H3: 715111.006 | I3: 3 | J3: 743111.034 | K3: 2 | L3: 741334.029 | M3: 4 | N3: 301313.072-05 | O3: 1
A4: 301314.413 | B4: 741124.156 | C4: 2 | D4: 746214.012 | E4: 1
A5: 301224.025-01 | B5: 301313.072-01 | C5: 1 | D5: 715111.006 | E5: 2 | F5: 741334.029 | G5: 4 | H5: 741361.025 | I5: 2 | J5: 711143.003 | K5: 2 | L5: 715312.051 | M5: 2 | N5: 741314.036 | O5: 2 | P5: 741124.157 | Q5: 1 | R5: 743111.034 | S5: 2
A6: 684564.022 | B6: 301224.025 | C6: 1 | D6: 301314.413 | E6: 3 | F6: 301314.411 | G6: 4 | H6: 301314.412 | I6: 2 | J6: 741334.029 | K6: 4 | L6: 715111.006 | M6: 3 | N6: 304597.007 | O6: 4 | P6: 301313.073 | Q6: 2 | R6: 741314.036 | S6: 3
A7: 304597.007-01 | B7: 746312.046 | C7: 1 | D7: 715211.026-01 | E7: 1
A8: 301314.411 | B8: 741124.156 | C8: 2 | D8: 746212.140 | E8: 1
A9: 301224.025 | B9: 301313.072 | C9: 1 | D9: 743111.034 | E9: 2 | F9: 741314.036 | G9: 3 | H9: 715111.006 | I9: 3 | J9: 741334.029 | K9: 4 | L9: 741124.157 | M9: 2 | N9: 741361.025 | O9: 4 | P9: 711143.003 | Q9: 3 | R9: 715312.051 | S9: 4
A10: 301314.412 | B10: 746214.013 | C10: 1 | D10: 741124.156 | E10: 2
A11: 301314.412-01 | B11: 741124.156 | C11: 2 | D11: 746214.017 | E11: 1
A12: 301314.413-01 | B12: 741124.156 | C12: 2 | D12: 746214.015 | E12: 1
A13: 301314.412-02 | B13: 741124.156 | C13: 2 | D13: 746214.018 | E13: 1
A14: 301314.413-02 | B14: 741124.156 | C14: 2 | D14: 746214.016 | E14: 1
A15: 301224.023 | B15: 301313.073 | C15: 1 | D15: 741334.029 | E15: 4 | F15: 715111.006 | G15: 1 | H15: 741314.036 | I15: 2 | J15: 743111.034 | K15: 2
A16: 301224.025-02 | B16: 301313.072-02 | C16: 1 | D16: 741334.029 | E16: 4 | F16: 715111.006 | G16: 2 | H16: 743111.034 | I16: 2 | J16: 741314.036 | K16: 2 | L16: 741124.157 | M16: 1 | N16: 741361.025 | O16: 2 | P16: 711143.003 | Q16: 2 | R16: 715312.051 | S16: 2
A17: 301224.024-01 | B17: 301313.072-04 | C17: 1 | D17: 741334.029 | E17: 4 | F17: 715111.006 | G17: 3 | H17: 743111.034 | I17: 2 | J17: 741314.036 | K17: 8 | L17: 741124.157 | M17: 1 | N17: 741361.025 | O17: 4
A18: 301224.024 | B18: 301313.072-03 | C18: 1 | D18: 741334.029 | E18: 4 | F18: 715111.006 | G18: 3 | H18: 743111.034 | I18: 2 | J18: 741314.036 | K18: 8 | L18: 741124.157 | M18: 2 | N18: 741361.025 | O18: 4
A19: 301313.072 | B19: 301314.413 | C19: 1 | D19: 715345.013 | E19: 6
A20: 301313.072-01 | B20: 301314.413-01 | C20: 1 | D20: 715345.013 | E20: 4
A21: 301313.072-02 | B21: 301314.413-02 | C21: 1 | D21: 715345.013 | E21: 4
A22: 301313.072-03 | B22: 301314.412 | C22: 1 | D22: 715345.013 | E22: 6
A23: 301313.072-04 | B23: 301314.412-01 | C23: 1 | D23: 715345.013 | E23: 4
A24: 301313.072-05 | B24: 301314.412-02 | C24: 1 | D24: 715345.013 | E24: 4
A25: 301313.073 | B25: 301314.411 | C25: 1 | D25: 715345.013 | E25: 2

Sheet Данные
A1: Номер | B1: Наименование | C1: Материал | D1: Норма расхода | E1: Отход
A2: 301224.023 | B2: Цоколь | C2: Узел | D2: 0 | E2: 0
A3: 301224.024 | B3: Цоколь | C3: Узел | D3: 0 | E3: 0
A4: 301224.024-01 | B4: Цоколь | C4: Узел | D4: 0 | E4: 0
A5: 301224.024-02 | B5: Цоколь | C5: Узел | D5: 0 | E5: 0
A6: 301224.025 | B6: Цоколь | C6: Узел | D6: 0 | E6: 0
A7: 301224.025-01 | B7: Цоколь | C7: Узел | D7: 0 | E7: 0
A8: 301224.025-02 | B8: Цоколь | C8: Узел | D8: 0 | E8: 0
A9: 301313.072 | B9: Швеллер | C9: Узел | D9: 0 | E9: 0
A10: 301313.072-01 | B10: Швеллер | C10: Узел | D10: 0 | E10: 0
A11: 301313.072-02 | B11: Швеллер | C11: Узел | D11: 0 | E11: 0
A12: 301313.072-03 | B12: Швеллер | C12: Узел | D12: 0 | E12: 0
A13: 301313.072-04 | B13: Швеллер | C13: Узел | D13: 0 | E13: 0
A14: 301313.072-05 | B14: Швеллер | C14: Узел | D14: 0 | E14: 0
A15: 301313.073 | B15: Швеллер | C15: Узел | D15: 0 | E15: 0
A16: 301314.411 | B16: Основание | C16: Узел | D16: 0 | E16: 0
A17: 301314.412 | B17: Основание | C17: Узел | D17: 0 | E17: 0
A18: 301314.412-01 | B18: Основание | C18: Узел | D18: 0 | E18: 0
A19: 301314.412-02 | B19: Основание | C19: Узел | D19: 0 | E19: 0
A20: 301314.413 | B20: Основание | C20: Узел | D20: 0 | E20: 0
A21: 301314.413-01 | B21: Основание | C21: Узел | D21: 0 | E21: 0
A22: 301314.413-02 | B22: Основание | C22: Узел | D22: 0 | E22: 0
A23: 304597.007 | B23: Вилка | C23: Узел | D23: 0 | E23: 0
A24: 304597.007-01 | B24: Вилка | C24: Узел | D24: 0 | E24: 0
A25: 684564.022 | B25: РЕЛЕ | C25: Узел | D25: 0 | E25: 0
A26: 711143.003 | B26: Диск | C26: Лист 12 ГОСТ5681-51 | D26: 0.18 | E26: 0.413
A27: 715111.006 | B27: Вал | C27: Круг 30 ГОСТ7417-75 | D27: 1.43 | E27: 0.083
A28: 715211.026 | B28: Шпилька | C28: Круг 14,68(4) ГОСТ7417-75 | D28: 0.083 | E28: 0.003
A29: 715211.026-01 | B29: Шпилька | C29: Круг 14,68(4) ГОСТ7417-75 | D29: 0.046 | E29: 0.003
A30: 715312.051 | B30: Ось | C30: Круг 22-h11 ГОСТ7417-75 | D30: 0.111 | E30: 0.045
A31: 715345.013 | B31: Втулка | C31: Пруток ДКРНП 40,0 ЛС59-1 ГОСТ2060-73 | D31: 0.04 | E31: 0.197
A32: 741124.156 | B32: Пластина | C32: Лист Б-ПН-0-5 ГОСТ19903-74 | D32: 0.31 | E32: 0.061
A33: 741124.157 | B33: Пластина | C33: Лист 6 ГОСТ5681-57 | D33: 0.376 | E33: 0.096
A34: 741314.036 | B34: Кольцо | C34: Лист БТ-ПН-0-2,5 ГОСТ19904-90 | D34: 0.012 | E34: 0.025
A35: 741334.029 | B35: Пластина | C35: Лист Б-ПН-8 ГОСТ19903-74 | D35: 0.098 | E35: 0.036
A36: 741361.025 | B36: Пластина | C36: Лист 6 ГОСТ5681-57 | D36: 0.14 | E36: 0.0678
A37: 743111.034 | B37: Рычаг | C37: Лист Б-ПН-0-4 ГОСТ19903-74 | D37: 0.08 | E37: 0.0984
A38: 746212.140 | B38: Швеллер | C38: Швеллер 16П-в ГОСТ8240-97 | D38: 5.78 | E38: 1.44
A39: 746214.012 | B39: Швеллер | C39: Швеллер 16П-в ГОСТ8240-97 | D39: 8.06 | E39: 2.32
A40: 746214.013 | B40: Швеллер | C40: Швеллер 16П-в ГОСТ8240-97 | D40: 8.12 | E40: 2.26
A41: 746214.015 | B41: Швеллер | C41: Швеллер 16П-в ГОСТ8240-97 | D41: 6.91 | E41: 1.83
A42: 746214.016 | B42: Швеллер | C42: Швеллер 16П-в ГОСТ8240-97 | D42: 6.92 | E42: 1.82
A43: 746214.017 | B43: Швеллер | C43: Швеллер 16П-в ГОСТ8240-98 | D43: 6.95 | E43: 1.79
A44: 746214.018 | B44: Швеллер | C44: Швеллер 16П-в ГОСТ8240-97 | D44: 6.95 | E44: 1.79
A45: 746312.046 | B45: Скоба | C45: Лист 6 ГОСТ5681-57 | D45: 0.52 | E45: 0.004
